[Event "Early-Titled-Tuesday-Blitz-December-26-2023"]
[Site "Chess.com"]
[Date "2023.12.26"]
[Round "2"]
[White "kakarot_001"]
[Black "PolinaYanch"]
[Result "1-0"]
[WhiteElo "2669"]
[BlackElo "1716"]
[TimeControl "180+1"]
[EndTime "8:16:30 PST"]
[Termination "kakarot_001 won on time"]

1. g3 {[%clk 0:02:56.1]} 1... d5 {[%clk 0:02:59.3]} 2. Bg2 {[%clk 0:02:56.5]}
2... Nf6 {[%clk 0:02:59.2]} 3. Nf3 {[%clk 0:02:54.6]} 3... c6 {[%clk 0:02:58.1]}
4. O-O {[%clk 0:02:53.7]} 4... e6 {[%clk 0:02:55.3]} 5. d3 {[%clk 0:02:53.9]}
5... Bd6 {[%clk 0:02:54.2]} 6. Nbd2 {[%clk 0:02:54.8]} 6... O-O {[%clk 0:02:54]}
7. e4 {[%clk 0:02:55.7]} 7... e5 {[%clk 0:02:47.3]} 8. exd5 {[%clk 0:02:54.3]}
8... cxd5 {[%clk 0:02:47.3]} 9. c4 {[%clk 0:02:55.2]} 9... Nc6 {[%clk
0:02:39.6]} 10. cxd5 {[%clk 0:02:53.8]} 10... Nxd5 {[%clk 0:02:39.3]} 11. Nc4
{[%clk 0:02:54.7]} 11... Bc7 {[%clk 0:02:33.4]} 12. a3 {[%clk 0:02:48.5]} 12...
b5 {[%clk 0:02:31.6]} 13. Ne3 {[%clk 0:02:45.2]} 13... Nxe3 {[%clk 0:02:28.1]}
14. Bxe3 {[%clk 0:02:46.1]} 14... Bb7 {[%clk 0:02:28.3]} 15. Ng5 {[%clk
0:02:35.9]} 15... Qd7 {[%clk 0:02:15.6]} 16. Qh5 {[%clk 0:02:26.6]} 16... h6
{[%clk 0:02:12.7]} 17. Ne4 {[%clk 0:02:26.6]} 17... Qe7 {[%clk 0:01:16.3]} 18.
Bc5 {[%clk 0:02:18.9]} 18... Qd8 {[%clk 0:01:02.1]} 19. Bxf8 {[%clk 0:02:16.7]}
19... Qxf8 {[%clk 0:01:02.8]} 20. Rac1 {[%clk 0:01:58.1]} 20... Bb6 {[%clk
0:01:02.8]} 21. Nf6+ {[%clk 0:01:56.2]} 21... gxf6 {[%clk 0:00:50.6]} 22. Bxc6
{[%clk 0:01:57.1]} 22... Bxc6 {[%clk 0:00:50.5]} 23. Rxc6 {[%clk 0:01:58]} 23...
Qg7 {[%clk 0:00:36.3]} 24. Qf3 {[%clk 0:01:57.7]} 24... Bd4 {[%clk 0:00:29.2]}
25. Rxf6 {[%clk 0:01:47.4]} 25... Rd8 {[%clk 0:00:21.9]} 26. Rc6 {[%clk
0:01:44]} 26... Bxb2 {[%clk 0:00:19.4]} 27. Qf5 {[%clk 0:01:42.8]} 27... Bd4
{[%clk 0:00:14.7]} 28. Rc8 {[%clk 0:01:42.4]} 28... Rxc8 {[%clk 0:00:14.1]} 29.
Qxc8+ {[%clk 0:01:43.3]} 29... Kh7 {[%clk 0:00:14.7]} 30. Qf5+ {[%clk
0:01:40.1]} 30... Qg6 {[%clk 0:00:13.7]} 31. Qd7 {[%clk 0:01:37]} 31... Qf6
{[%clk 0:00:12.9]} 32. Qxb5 {[%clk 0:01:33.6]} 32... Qf3 {[%clk 0:00:12.1]} 33.
Qd7 {[%clk 0:01:27.2]} 33... Kg7 {[%clk 0:00:11.5]} 34. a4 {[%clk 0:01:20.5]}
34... Kh7 {[%clk 0:00:11]} 35. a5 {[%clk 0:01:20.3]} 35... Kg7 {[%clk
0:00:11.3]} 36. a6 {[%clk 0:01:20.7]} 36... Kh7 {[%clk 0:00:10.9]} 37. Qb7
{[%clk 0:01:18]} 37... Qf6 {[%clk 0:00:06.5]} 38. Qe4+ {[%clk 0:01:17.4]} 38...
Kg7 {[%clk 0:00:07]} 39. Kg2 {[%clk 0:01:17.3]} 39... Qb6 {[%clk 0:00:03.4]} 40.
Qg4+ {[%clk 0:01:16.2]} 40... Kh7 {[%clk 0:00:02.8]} 41. Qd7 {[%clk 0:01:12]}
1-0

[Event "Early-Titled-Tuesday-Blitz-December-26-2023"]
[Site "Chess.com"]
[Date "2023.12.26"]
[Round "2"]
[White "Barbix1"]
[Black "Journey_to_GrandMaster_YT"]
[Result "0-1"]
[WhiteElo "2283"]
[BlackElo "2538"]
[TimeControl "180+1"]
[EndTime "8:16:31 PST"]
[Termination "Journey_to_GrandMaster_YT won on time"]

1. e4 {[%clk 0:02:59.6]} 1... d6 {[%clk 0:03:00.9]} 2. d4 {[%clk 0:02:55.7]}
2... Nf6 {[%clk 0:02:57]} 3. Nc3 {[%clk 0:02:55.5]} 3... e5 {[%clk 0:02:55.8]}
4. Nf3 {[%clk 0:02:47.8]} 4... Nbd7 {[%clk 0:02:55.1]} 5. Be3 {[%clk 0:02:46.4]}
5... c6 {[%clk 0:02:48.1]} 6. h3 {[%clk 0:02:41.7]} 6... Be7 {[%clk 0:02:46.8]}
7. Qd2 {[%clk 0:02:37.7]} 7... O-O {[%clk 0:02:42.5]} 8. a4 {[%clk 0:02:37.8]}
8... Qa5 {[%clk 0:02:38.8]} 9. Bc4 {[%clk 0:02:29.1]} 9... b5 {[%clk 0:02:31.8]}
10. Bd3 {[%clk 0:02:18.8]} 10... b4 {[%clk 0:02:27.9]} 11. Ne2 {[%clk
0:02:13.8]} 11... c5 {[%clk 0:02:25.4]} 12. dxe5 {[%clk 0:02:03.8]} 12... Nxe5
{[%clk 0:02:22.4]} 13. Nxe5 {[%clk 0:00:53.8]} 13... dxe5 {[%clk 0:02:21.3]} 14.
Bc4 {[%clk 0:00:54.7]} 14... Rd8 {[%clk 0:02:08.6]} 15. Qc1 {[%clk 0:00:52.5]}
15... Nxe4 {[%clk 0:02:00.1]} 16. O-O {[%clk 0:00:47.9]} 16... Ba6 {[%clk
0:01:54.4]} 17. Bxa6 {[%clk 0:00:37.7]} 17... Qxa6 {[%clk 0:01:55.3]} 18. Ng3
{[%clk 0:00:35.9]} 18... Nxg3 {[%clk 0:01:53.2]} 19. fxg3 {[%clk 0:00:36.8]}
19... Rd5 {[%clk 0:01:46.7]} 20. Qe1 {[%clk 0:00:35.8]} 20... Rad8 {[%clk
0:01:43.5]} 21. Qf2 {[%clk 0:00:34.6]} 21... Qe6 {[%clk 0:01:30.6]} 22. a5
{[%clk 0:00:29.1]} 22... a6 {[%clk 0:01:29.5]} 23. Qe2 {[%clk 0:00:26]} 23...
Qg6 {[%clk 0:01:20.1]} 24. g4 {[%clk 0:00:10.8]} 24... Qe4 {[%clk 0:01:16.8]}
25. Rf3 {[%clk 0:00:06.4]} 25... Bg5 {[%clk 0:01:09]} 26. Re1 {[%clk 0:00:04.6]}
26... Bh4 {[%clk 0:00:59.8]} 27. Ref1 {[%clk 0:00:03.9]} 27... f6 {[%clk
0:00:54.2]} 28. Qxa6 {[%clk 0:00:03.2]} 28... Qxc2 {[%clk 0:00:54]} 29. Qe6+
{[%clk 0:00:02.4]} 29... Kh8 {[%clk 0:00:54.3]} 30. g5 {[%clk 0:00:01.9]} 30...
Qg6 {[%clk 0:00:49.9]} 31. gxf6 {[%clk 0:00:01.8]} 31... Bxf6 {[%clk 0:00:49.7]}
32. h4 {[%clk 0:00:01]} 32... R5d6 {[%clk 0:00:43.8]} 0-1

[Event "Early-Titled-Tuesday-Blitz-December-26-2023"]
[Site "Chess.com"]
[Date "2023.12.26"]
[Round "2"]
[White "CSB7"]
[Black "UK_23"]
[Result "1/2-1/2"]
[WhiteElo "2690"]
[BlackElo "2335"]
[TimeControl "180+1"]
[EndTime "8:16:35 PST"]
[Termination "Game drawn by repetition"]

1. e4 {[%clk 0:03:00.4]} 1... e5 {[%clk 0:02:50.9]} 2. Nf3 {[%clk 0:03:00]} 2...
Nf6 {[%clk 0:02:50.5]} 3. Nxe5 {[%clk 0:02:51.2]} 3... Nxe4 {[%clk 0:02:50.9]}
4. Qe2 {[%clk 0:02:41.7]} 4... Qe7 {[%clk 0:02:50.2]} 5. Qxe4 {[%clk 0:02:41.4]}
5... d6 {[%clk 0:02:49.5]} 6. d4 {[%clk 0:02:41.5]} 6... dxe5 {[%clk 0:02:49.3]}
7. dxe5 {[%clk 0:02:42.3]} 7... Nc6 {[%clk 0:02:49.8]} 8. Nc3 {[%clk 0:02:30.4]}
8... Qxe5 {[%clk 0:02:46.2]} 9. Qxe5+ {[%clk 0:02:29.4]} 9... Nxe5 {[%clk
0:02:47.1]} 10. Nb5 {[%clk 0:02:29.7]} 10... Bb4+ {[%clk 0:02:44.8]} 11. Bd2
{[%clk 0:02:29.9]} 11... Bxd2+ {[%clk 0:02:45]} 12. Kxd2 {[%clk 0:02:30.8]}
12... Kd8 {[%clk 0:02:45.6]} 13. Re1 {[%clk 0:02:25.6]} 13... Nd7 {[%clk
0:02:45.6]} 14. Kc1 {[%clk 0:02:13.1]} 14... Nb6 {[%clk 0:02:44.6]} 15. Bd3
{[%clk 0:01:56.7]} 15... Bd7 {[%clk 0:02:43.2]} 16. Nc3 {[%clk 0:01:51.7]} 16...
Bc6 {[%clk 0:02:28.9]} 17. f3 {[%clk 0:01:39.8]} 17... h6 {[%clk 0:02:11.3]} 18.
Be4 {[%clk 0:00:55]} 18... Bxe4 {[%clk 0:02:05.7]} 19. Nxe4 {[%clk 0:00:55.9]}
19... Re8 {[%clk 0:02:00.5]} 20. Nc5 {[%clk 0:00:54.4]} 20... Rxe1+ {[%clk
0:01:57.1]} 21. Rxe1 {[%clk 0:00:55.3]} 21... Rb8 {[%clk 0:01:53.5]} 22. a4
{[%clk 0:00:45.8]} 22... Nc4 {[%clk 0:01:48.6]} 23. Rd1+ {[%clk 0:00:20]} 23...
Nd6 {[%clk 0:01:46.7]} 24. Ne4 {[%clk 0:00:20.2]} 24... Ke7 {[%clk 0:01:44.4]}
25. Nxd6 {[%clk 0:00:20.8]} 25... cxd6 {[%clk 0:01:44.5]} 26. Kd2 {[%clk
0:00:21.3]} 26... Rc8 {[%clk 0:01:42.7]} 27. Kd3 {[%clk 0:00:21]} 27... Rc5
{[%clk 0:01:42.2]} 28. Re1+ {[%clk 0:00:21.6]} 28... Kd7 {[%clk 0:01:42.6]} 29.
b4 {[%clk 0:00:17.9]} 29... Rg5 {[%clk 0:01:42.4]} 30. g3 {[%clk 0:00:17.4]}
30... a5 {[%clk 0:01:41.7]} 31. c3 {[%clk 0:00:16.4]} 31... h5 {[%clk
0:01:37.3]} 32. Re4 {[%clk 0:00:14.4]} 32... g6 {[%clk 0:01:36.2]} 33. Rd4
{[%clk 0:00:13.8]} 33... Kc6 {[%clk 0:01:34.6]} 34. f4 {[%clk 0:00:12.1]} 34...
Rf5 {[%clk 0:01:32.5]} 35. Ke4 {[%clk 0:00:11.8]} 35... d5+ {[%clk 0:01:22.2]}
36. Ke3 {[%clk 0:00:10.6]} 36... axb4 {[%clk 0:01:22]} 37. cxb4 {[%clk
0:00:10.8]} 37... Rf6 {[%clk 0:01:20.5]} 38. h3 {[%clk 0:00:05]} 38... Re6+
{[%clk 0:01:20.7]} 39. Kd2 {[%clk 0:00:05.7]} 39... f6 {[%clk 0:01:11.7]} 40. g4
{[%clk 0:00:03.5]} 40... hxg4 {[%clk 0:01:12.6]} 41. hxg4 {[%clk 0:00:04.4]}
41... g5 {[%clk 0:01:10.7]} 42. fxg5 {[%clk 0:00:04.4]} 42... fxg5 {[%clk
0:01:11.6]} 43. Kc3 {[%clk 0:00:04.6]} 43... Re3+ {[%clk 0:01:11.3]} 44. Rd3
{[%clk 0:00:05.2]} 44... Re4 {[%clk 0:01:11.8]} 45. Rd4 {[%clk 0:00:05.2]} 45...
Re3+ {[%clk 0:01:12.2]} 46. Rd3 {[%clk 0:00:03.9]} 46... Re4 {[%clk 0:01:07.8]}
47. Rd4 {[%clk 0:00:03.7]} 47... Re3+ {[%clk 0:01:08.3]} 1/2-1/2

[Event "Early-Titled-Tuesday-Blitz-December-26-2023"]
[Site "Chess.com"]
[Date "2023.12.26"]
[Round "2"]
[White "Practical-Play"]
[Black "Kaissa10"]
[Result "1-0"]
[WhiteElo "2478"]
[BlackElo "2117"]
[TimeControl "180+1"]
[EndTime "8:16:40 PST"]
[Termination "Practical-Play won on time"]

1. e4 {[%clk 0:03:00.9]} 1... c5 {[%clk 0:02:57.1]} 2. c3 {[%clk 0:02:50]} 2...
Nf6 {[%clk 0:02:56]} 3. e5 {[%clk 0:02:49.2]} 3... Nd5 {[%clk 0:02:56.1]} 4. Bc4
{[%clk 0:02:43.7]} 4... e6 {[%clk 0:02:36.1]} 5. Nf3 {[%clk 0:02:39.2]} 5... d6
{[%clk 0:02:32.2]} 6. O-O {[%clk 0:02:38.3]} 6... Nc6 {[%clk 0:02:31.9]} 7. Qe2
{[%clk 0:02:34.4]} 7... Nb6 {[%clk 0:02:29]} 8. Bb5 {[%clk 0:02:32.2]} 8... Bd7
{[%clk 0:02:13.3]} 9. d4 {[%clk 0:01:57.4]} 9... cxd4 {[%clk 0:01:53.3]} 10.
cxd4 {[%clk 0:01:48.3]} 10... Be7 {[%clk 0:01:53.2]} 11. Nc3 {[%clk 0:01:40.9]}
11... O-O {[%clk 0:01:53.1]} 12. Bd3 {[%clk 0:01:15.1]} 12... Nb4 {[%clk
0:01:15.2]} 13. Bb1 {[%clk 0:01:10.5]} 13... N4d5 {[%clk 0:01:14.3]} 14. Qe4
{[%clk 0:01:02.2]} 14... g6 {[%clk 0:01:13]} 15. Bh6 {[%clk 0:00:53.7]} 15...
Re8 {[%clk 0:01:13]} 16. h4 {[%clk 0:00:50.1]} 16... Bc6 {[%clk 0:01:05.6]} 17.
Qg4 {[%clk 0:00:23.6]} 17... Bf8 {[%clk 0:00:26.8]} 18. Bg5 {[%clk 0:00:21.4]}
18... Be7 {[%clk 0:00:26]} 19. Ne4 {[%clk 0:00:21]} 19... h5 {[%clk 0:00:17.2]}
20. Qg3 {[%clk 0:00:20]} 20... Bb5 {[%clk 0:00:04.7]} 21. Re1 {[%clk 0:00:16.5]}
21... Nb4 {[%clk 0:00:02.1]} 22. Nf6+ {[%clk 0:00:15.1]} 22... Bxf6 {[%clk
0:00:02.4]} 23. Bxf6 {[%clk 0:00:15.2]} 23... Qd7 {[%clk 0:00:01.7]} 24. Bxg6
{[%clk 0:00:14.7]} 24... fxg6 {[%clk 0:00:01.5]} 25. Qxg6+ {[%clk 0:00:15.6]}
25... Kf8 {[%clk 0:00:02.1]} 26. Ng5 {[%clk 0:00:16.5]} 1-0

[Event "Early-Titled-Tuesday-Blitz-December-26-2023"]
[Site "Chess.com"]
[Date "2023.12.26"]
[Round "2"]
[White "ChessRespected"]
[Black "seopie"]
[Result "0-1"]
[WhiteElo "2582"]
[BlackElo "2822"]
[TimeControl "180+1"]
[EndTime "8:16:44 PST"]
[Termination "seopie won on time"]

1. d4 {[%clk 0:03:00.9]} 1... Nf6 {[%clk 0:02:59.9]} 2. Nf3 {[%clk 0:03:01]}
2... g6 {[%clk 0:03:00.8]} 3. g3 {[%clk 0:03:01.3]} 3... Bg7 {[%clk 0:03:00.9]}
4. Bg2 {[%clk 0:03:01.9]} 4... b5 {[%clk 0:02:59.8]} 5. a4 {[%clk 0:02:59.5]}
5... b4 {[%clk 0:02:58.5]} 6. c4 {[%clk 0:02:58.2]} 6... bxc3 {[%clk 0:02:57.8]}
7. Nxc3 {[%clk 0:02:52.5]} 7... Bb7 {[%clk 0:02:58]} 8. O-O {[%clk 0:02:49.7]}
8... O-O {[%clk 0:02:56.1]} 9. Re1 {[%clk 0:02:49.8]} 9... d6 {[%clk 0:02:54.5]}
10. e4 {[%clk 0:02:49.2]} 10... Nbd7 {[%clk 0:02:54.7]} 11. h3 {[%clk
0:02:48.4]} 11... Ne8 {[%clk 0:02:44.9]} 12. Bg5 {[%clk 0:02:45.7]} 12... h6
{[%clk 0:02:42.9]} 13. Be3 {[%clk 0:02:45.3]} 13... c5 {[%clk 0:02:43]} 14. Qd2
{[%clk 0:02:45.1]} 14... Kh7 {[%clk 0:02:35.9]} 15. d5 {[%clk 0:02:42]} 15...
Nc7 {[%clk 0:02:27.2]} 16. a5 {[%clk 0:02:41.3]} 16... Na6 {[%clk 0:02:26.6]}
17. h4 {[%clk 0:02:34.3]} 17... Rb8 {[%clk 0:02:25]} 18. h5 {[%clk 0:02:34.3]}
18... g5 {[%clk 0:02:24.6]} 19. Ra4 {[%clk 0:01:59.6]} 19... Bc8 {[%clk
0:02:22.6]} 20. e5 {[%clk 0:01:57.6]} 20... Nxe5 {[%clk 0:02:19.6]} 21. Nxe5
{[%clk 0:01:53.4]} 21... Bxe5 {[%clk 0:02:20.5]} 22. f4 {[%clk 0:01:51.3]} 22...
gxf4 {[%clk 0:02:20.5]} 23. Bxf4 {[%clk 0:01:49]} 23... Bg7 {[%clk 0:01:59]} 24.
Be4+ {[%clk 0:01:42.4]} 24... f5 {[%clk 0:01:58.1]} 25. Bb1 {[%clk 0:01:41]}
25... Rb4 {[%clk 0:01:56.9]} 26. g4 {[%clk 0:01:33.9]} 26... Rxa4 {[%clk
0:01:53.7]} 27. Nxa4 {[%clk 0:01:33.5]} 27... Bd7 {[%clk 0:01:44.3]} 28. Nc3
{[%clk 0:01:30.3]} 28... Rf6 {[%clk 0:01:31.3]} 29. Kh1 {[%clk 0:01:26.1]} 29...
Kh8 {[%clk 0:01:27.5]} 30. g5 {[%clk 0:01:26.3]} 30... hxg5 {[%clk 0:01:26.4]}
31. Bxg5 {[%clk 0:01:26.6]} 31... Rf7 {[%clk 0:01:26.8]} 32. Ne2 {[%clk
0:01:17.8]} 32... Qb8 {[%clk 0:01:05.1]} 33. Nf4 {[%clk 0:01:09.9]} 33... Qxb2
{[%clk 0:01:04.2]} 34. Qxb2 {[%clk 0:01:07.4]} 34... Bxb2 {[%clk 0:01:04.1]} 35.
Bxe7 {[%clk 0:01:07.4]} 35... Be5 {[%clk 0:01:00.2]} 36. Ng6+ {[%clk 0:01:06]}
36... Kh7 {[%clk 0:01:00.2]} 37. Nxe5 {[%clk 0:01:06.1]} 37... Rxe7 {[%clk
0:00:59.3]} 38. Nf3 {[%clk 0:01:01.6]} 38... Rxe1+ {[%clk 0:00:58.7]} 39. Nxe1
{[%clk 0:01:02.5]} 39... Kh6 {[%clk 0:00:58.6]} 40. Kg2 {[%clk 0:00:56.7]} 40...
Kxh5 {[%clk 0:00:58]} 41. Kg3 {[%clk 0:00:57.1]} 41... Kg5 {[%clk 0:00:57.2]}
42. Nf3+ {[%clk 0:00:56.5]} 42... Kf6 {[%clk 0:00:57.9]} 43. Kf4 {[%clk
0:00:56.8]} 43... Nb4 {[%clk 0:00:58]} 0-1

[Event "Early-Titled-Tuesday-Blitz-December-26-2023"]
[Site "Chess.com"]
[Date "2023.12.26"]
[Round "2"]
[White "GasconJR"]
[Black "wonderfultime"]
[Result "0-1"]
[WhiteElo "2647"]
[BlackElo "3009"]
[TimeControl "180+1"]
[EndTime "8:16:53 PST"]
[Termination "wonderfultime won on time"]

1. Nf3 {[%clk 0:02:53.7]} 1... d5 {[%clk 0:02:59]} 2. g3 {[%clk 0:02:53.3]} 2...
Nd7 {[%clk 0:02:58.1]} 3. d4 {[%clk 0:02:53]} 3... Nb6 {[%clk 0:02:58.4]} 4. Nc3
{[%clk 0:02:52]} 4... Nf6 {[%clk 0:02:54.7]} 5. Bg2 {[%clk 0:02:44.9]} 5... h6
{[%clk 0:02:55]} 6. O-O {[%clk 0:02:43.3]} 6... Bf5 {[%clk 0:02:55.2]} 7. Nd2
{[%clk 0:02:20.7]} 7... c6 {[%clk 0:02:52.6]} 8. e4 {[%clk 0:02:15.7]} 8... dxe4
{[%clk 0:02:53.5]} 9. Ndxe4 {[%clk 0:02:15.4]} 9... e6 {[%clk 0:02:54.1]} 10.
Nxf6+ {[%clk 0:02:14.7]} 10... Qxf6 {[%clk 0:02:53.3]} 11. Ne4 {[%clk
0:02:15.1]} 11... Qd8 {[%clk 0:02:43.2]} 12. b3 {[%clk 0:02:14.2]} 12... Be7
{[%clk 0:02:42.9]} 13. Bb2 {[%clk 0:02:14.3]} 13... O-O {[%clk 0:02:43.5]} 14.
c4 {[%clk 0:02:13.7]} 14... Qc7 {[%clk 0:02:41.6]} 15. Qe2 {[%clk 0:02:12.4]}
15... Rad8 {[%clk 0:02:38.6]} 16. Rad1 {[%clk 0:02:09]} 16... a5 {[%clk
0:02:37.8]} 17. Bc3 {[%clk 0:02:04.5]} 17... a4 {[%clk 0:02:38]} 18. Ba5 {[%clk
0:02:03.1]} 18... Ra8 {[%clk 0:02:30.7]} 19. b4 {[%clk 0:02:00.8]} 19... Rxa5
{[%clk 0:01:31.4]} 20. bxa5 {[%clk 0:02:01.7]} 20... Nd7 {[%clk 0:01:32.3]} 21.
a6 {[%clk 0:01:53.9]} 21... bxa6 {[%clk 0:01:30.9]} 22. Nc3 {[%clk 0:01:19.3]}
22... Qa5 {[%clk 0:01:07]} 23. Bxc6 {[%clk 0:01:07.6]} 23... Nb8 {[%clk
0:01:04.8]} 24. Be4 {[%clk 0:00:53.2]} 24... Bh3 {[%clk 0:01:04.9]} 25. Qc2
{[%clk 0:00:42.3]} 25... Bxf1 {[%clk 0:01:04.7]} 26. Kxf1 {[%clk 0:00:41]} 26...
a3 {[%clk 0:01:00.2]} 27. c5 {[%clk 0:00:38.3]} 27... Bf6 {[%clk 0:00:50.5]} 28.
Qb3 {[%clk 0:00:29.9]} 28... Rd8 {[%clk 0:00:50]} 29. Ne2 {[%clk 0:00:28.7]}
29... Nd7 {[%clk 0:00:43.7]} 30. Rd3 {[%clk 0:00:27]} 30... Rb8 {[%clk
0:00:36.9]} 31. Qxa3 {[%clk 0:00:27]} 31... Rb1+ {[%clk 0:00:37.2]} 32. Kg2
{[%clk 0:00:27.1]} 32... Qe1 {[%clk 0:00:37.9]} 33. Kf3 {[%clk 0:00:13.6]} 33...
Bg5 {[%clk 0:00:33.7]} 34. Nc3 {[%clk 0:00:03.8]} 34... Nf6 {[%clk 0:00:28.9]}
35. Rd1 {[%clk 0:00:01.1]} 35... Rxd1 {[%clk 0:00:28.7]} 0-1

[Event "Early-Titled-Tuesday-Blitz-December-26-2023"]
[Site "Chess.com"]
[Date "2023.12.26"]
[Round "2"]
[White "ProfessorChess101"]
[Black "Bauman_Guy"]
[Result "0-1"]
[WhiteElo "2605"]
[BlackElo "2892"]
[TimeControl "180+1"]
[EndTime "8:16:54 PST"]
[Termination "Bauman_Guy won on time"]

1. e4 {[%clk 0:03:00.9]} 1... c5 {[%clk 0:02:59.6]} 2. Nc3 {[%clk 0:02:59.5]}
2... d6 {[%clk 0:02:59.8]} 3. d4 {[%clk 0:02:58.3]} 3... cxd4 {[%clk 0:03:00.7]}
4. Qxd4 {[%clk 0:02:58.7]} 4... Nc6 {[%clk 0:03:01.4]} 5. Qd2 {[%clk 0:02:59.3]}
5... g6 {[%clk 0:03:00.6]} 6. b3 {[%clk 0:02:59.5]} 6... Bg7 {[%clk 0:03:01.1]}
7. Bb2 {[%clk 0:02:59.4]} 7... a6 {[%clk 0:02:58.4]} 8. O-O-O {[%clk 0:02:52.7]}
8... b5 {[%clk 0:02:57.7]} 9. f4 {[%clk 0:02:49.9]} 9... b4 {[%clk 0:02:53.3]}
10. Nd5 {[%clk 0:02:48]} 10... Bxb2+ {[%clk 0:02:51.8]} 11. Kxb2 {[%clk
0:02:48.9]} 11... a5 {[%clk 0:02:45.9]} 12. Nf3 {[%clk 0:02:40.2]} 12... e6
{[%clk 0:02:40.5]} 13. Bb5 {[%clk 0:02:33.9]} 13... Bd7 {[%clk 0:02:21.3]} 14.
Ne3 {[%clk 0:02:30.2]} 14... Nf6 {[%clk 0:02:04.5]} 15. Qxd6 {[%clk 0:02:20.8]}
15... Rc8 {[%clk 0:01:34.3]} 16. Bd3 {[%clk 0:01:17.9]} 16... Ne7 {[%clk
0:01:14.4]} 17. e5 {[%clk 0:00:59.7]} 17... Nfd5 {[%clk 0:00:59.6]} 18. Nxd5
{[%clk 0:00:59.4]} 18... Nxd5 {[%clk 0:00:59.8]} 19. Ng5 {[%clk 0:00:41.5]}
19... Rc6 {[%clk 0:00:53.8]} 20. Ne4 {[%clk 0:00:19.1]} 20... Rxd6 {[%clk
0:00:52.9]} 21. Nxd6+ {[%clk 0:00:20]} 21... Kf8 {[%clk 0:00:53.2]} 22. g3
{[%clk 0:00:19.2]} 22... Kg7 {[%clk 0:00:52.3]} 23. Bc4 {[%clk 0:00:18.8]} 23...
Bc6 {[%clk 0:00:50.4]} 24. Ne4 {[%clk 0:00:18.6]} 24... Qb6 {[%clk 0:00:48.5]}
25. Rd3 {[%clk 0:00:16.7]} 25... Ne3 {[%clk 0:00:45.4]} 26. Rd6 {[%clk
0:00:12.6]} 26... Nxc4+ {[%clk 0:00:41.9]} 27. bxc4 {[%clk 0:00:13.5]} 27... Qc7
{[%clk 0:00:42.1]} 28. Re1 {[%clk 0:00:09.7]} 28... Bxe4 {[%clk 0:00:31.8]} 29.
Rxe4 {[%clk 0:00:10.6]} 29... Rc8 {[%clk 0:00:28.3]} 30. Red4 {[%clk 0:00:08.1]}
30... Qb7 {[%clk 0:00:28.5]} 31. Rd7 {[%clk 0:00:06.6]} 31... Rc7 {[%clk
0:00:28.6]} 32. R7d6 {[%clk 0:00:06.6]} 32... Qf3 {[%clk 0:00:25.6]} 33. Rd3
{[%clk 0:00:05.6]} 33... Qe2 {[%clk 0:00:24.5]} 0-1

[Event "Early-Titled-Tuesday-Blitz-December-26-2023"]
[Site "Chess.com"]
[Date "2023.12.26"]
[Round "2"]
[White "LileKoridze"]
[Black "bescmelasti"]
[Result "0-1"]
[WhiteElo "2362"]
[BlackElo "2644"]
[TimeControl "180+1"]
[EndTime "8:16:55 PST"]
[Termination "bescmelasti won by resignation"]

1. d4 {[%clk 0:03:00.9]} 1... Nf6 {[%clk 0:02:57]} 2. c4 {[%clk 0:02:58.6]} 2...
e6 {[%clk 0:02:57.3]} 3. Nf3 {[%clk 0:02:58.7]} 3... Bb4+ {[%clk 0:02:54.2]} 4.
Bd2 {[%clk 0:02:58.2]} 4... Qe7 {[%clk 0:02:53.5]} 5. Nc3 {[%clk 0:02:57.6]}
5... b6 {[%clk 0:02:50]} 6. e4 {[%clk 0:02:57.3]} 6... Bxc3 {[%clk 0:02:47.1]}
7. Bxc3 {[%clk 0:02:55.9]} 7... Nxe4 {[%clk 0:02:47.4]} 8. Qc2 {[%clk
0:02:56.3]} 8... Bb7 {[%clk 0:02:46.4]} 9. Be2 {[%clk 0:02:52.1]} 9... O-O
{[%clk 0:02:42.7]} 10. O-O {[%clk 0:02:51.8]} 10... Nxc3 {[%clk 0:02:43.3]} 11.
Qxc3 {[%clk 0:02:51.9]} 11... d6 {[%clk 0:02:43.7]} 12. Rfe1 {[%clk 0:02:52.2]}
12... Nd7 {[%clk 0:02:44.3]} 13. Rad1 {[%clk 0:02:51.3]} 13... c5 {[%clk
0:02:40.6]} 14. dxc5 {[%clk 0:02:50.2]} 14... Nxc5 {[%clk 0:02:39.3]} 15. b4
{[%clk 0:02:49.9]} 15... Ne4 {[%clk 0:02:39.2]} 16. Qe3 {[%clk 0:02:49.9]} 16...
Rad8 {[%clk 0:02:37.1]} 17. Nd4 {[%clk 0:02:48.5]} 17... Nf6 {[%clk 0:02:28.7]}
18. Bd3 {[%clk 0:02:43.7]} 18... a6 {[%clk 0:02:24.6]} 19. Nf5 {[%clk
0:02:39.7]} 19... Qc7 {[%clk 0:02:24.3]} 20. Nxg7 {[%clk 0:02:39.1]} 20... Ng4
{[%clk 0:01:54.9]} 21. Qg5 {[%clk 0:02:31.7]} 21... f6 {[%clk 0:01:55.2]} 22.
Qxg4 {[%clk 0:02:05.1]} 22... Qxg7 {[%clk 0:01:55.4]} 23. Qxe6+ {[%clk
0:02:05.4]} 23... Kh8 {[%clk 0:01:55.2]} 24. Be4 {[%clk 0:02:02.6]} 24... Rfe8
{[%clk 0:01:50.2]} 25. Qf5 {[%clk 0:02:02.2]} 25... Re5 {[%clk 0:01:46]} 26. Qf3
{[%clk 0:02:01.4]} 26... Rde8 {[%clk 0:01:44]} 27. Rd4 {[%clk 0:01:58.7]} 27...
f5 {[%clk 0:01:39.4]} 28. Qh5 {[%clk 0:01:51.3]} 28... fxe4 {[%clk 0:01:36.7]}
29. Qh3 {[%clk 0:01:50.8]} 29... Bc8 {[%clk 0:01:32.2]} 30. Qe3 {[%clk
0:01:49.4]} 30... Qg6 {[%clk 0:01:27.4]} 31. Rd2 {[%clk 0:01:44.3]} 31... Rg8
{[%clk 0:01:24.8]} 32. g3 {[%clk 0:01:43.6]} 32... Bg4 {[%clk 0:01:24.5]} 33.
Qxb6 {[%clk 0:01:43.1]} 33... Re6 {[%clk 0:01:19.3]} 34. Qd4+ {[%clk 0:01:33.8]}
34... Rg7 {[%clk 0:01:19.2]} 35. Qe3 {[%clk 0:01:19.9]} 35... Bf3 {[%clk
0:01:17]} 36. Qf4 {[%clk 0:01:18]} 36... Rf7 {[%clk 0:01:13.5]} 37. Qh4 {[%clk
0:01:17.9]} 37... Kg7 {[%clk 0:01:06.5]} 38. Rd5 {[%clk 0:01:15.5]} 38... Re5
{[%clk 0:01:04.1]} 39. Rd4 {[%clk 0:01:12.3]} 39... Rh5 {[%clk 0:01:03]} 40. Qd8
{[%clk 0:01:12.3]} 40... Qf5 {[%clk 0:00:49.3]} 41. Rd5 {[%clk 0:01:03.6]} 41...
Qg4 {[%clk 0:00:34.2]} 42. h4 {[%clk 0:00:52.9]} 42... Rxd5 {[%clk 0:00:31.4]}
43. cxd5 {[%clk 0:00:52.4]} 43... Rd7 {[%clk 0:00:20.5]} 44. Qg5+ {[%clk
0:00:44.5]} 44... Qxg5 {[%clk 0:00:20.4]} 45. hxg5 {[%clk 0:00:45.4]} 45... Rc7
{[%clk 0:00:19.8]} 46. a4 {[%clk 0:00:46]} 46... Rc4 {[%clk 0:00:19.6]} 47. Rb1
{[%clk 0:00:46.1]} 47... Kg6 {[%clk 0:00:19]} 48. b5 {[%clk 0:00:46.7]} 48...
axb5 {[%clk 0:00:18.5]} 49. axb5 {[%clk 0:00:47.6]} 49... Rc7 {[%clk 0:00:18.7]}
50. Ra1 {[%clk 0:00:46.7]} 50... Rb7 {[%clk 0:00:19.6]} 51. Ra6 {[%clk
0:00:46.1]} 51... Rxb5 {[%clk 0:00:19.9]} 52. Rxd6+ {[%clk 0:00:46.5]} 52...
Kxg5 {[%clk 0:00:20.8]} 53. Rd7 {[%clk 0:00:46.6]} 53... Rb1+ {[%clk 0:00:20.7]}
0-1